bitfinex-derivatives/quotes_BNBF0:USTF0_20250521
["timestamp","ask_amount","ask_price","bid_price","bid_amount"]
[1747794860995,0.26740742,651.44,650.2,0.30738389]
[1747794861291,0.26740742,651.44,650.21,0.62065256]
[1747794861490,0.26740742,651.44,650.22,0.62065256]
[1747794861686,0.26740742,651.44,650.23,0.92803645]
[1747794861990,0.26740742,651.44,650.24,0.62065256]
[1747794862187,0.26740742,651.44,650.25,0.62065256]
[1747794862492,0.26740742,651.44,650.26,0.62065256]
[1747794862692,0.26740742,651.44,650.27,0.62065256]
[1747794862990,0.26740742,651.44,650.28,0.62047466]
[1747794863190,0.26740742,651.44,650.29,0.62047466]
[1747794863392,0.26740742,651.44,650.3,0.62047466]
[1747794863591,0.26740742,651.44,650.31,0.62047466]
[1747794863792,0.26740742,651.44,650.32,0.92785855]
[1747794864092,0.26740742,651.44,650.33,0.62038014]
[1747794864294,0.26740742,651.44,650.32,0.30738389]
[1747794864488,0.26740742,651.44,650.33,0.62038132]
[1747794864692,1.466,651.45,650.34,0.62038132]
[1747794864990,1.466,651.45,650.32,0.30738389]
[1747794864991,1.466,651.45,650.35,0.62038132]
[1747794865191,1.466,651.45,650.36,0.62038132]
[1747794865391,1.466,651.45,650.37,0.62038132]
[1747794865586,1.466,651.45,650.38,0.62038132]
[1747794865789,1.466,651.45,650.39,0.62038132]
[1747794865988,1.466,651.45,650.4,0.62038132]
[1747794866188,1.466,651.45,650.35,0.30738389]
[1747794866392,1.466,651.45,650.41,0.30738389]
[1747794867594,1.466,651.45,650.42,0.30738389]
[1747794869195,1.466,651.45,650.43,0.30738389]
[1747794870802,1.466,651.45,650.44,0.30738389]
[1747794871102,7.63758403,652.03,650.44,0.30738389]
[1747794871503,0.26736735,651.52,650.44,0.30738389]
[1747794871802,7.63758403,652.03,650.44,0.30738389]
[1747794872607,7.63758403,652.03,650.14,0.25253552]
[1747794872800,7.63758403,652.03,650.15,1.73527174]
[1747794873001,0.2673078,652.02,650.16,1.73527174]
[1747794873304,0.2673078,652.02,650.17,0.61963009]
[1747794873609,1.396,652.01,650.18,1.73527174]
[1747794873808,1.396,652.01,650.19,0.61963009]
[1747794874007,1.396,652.01,650.2,0.61963009]
[1747794874202,1.396,652.01,650.21,1.73527174]
[1747794874509,1.396,652.01,650.22,0.61955636]
[1747794874699,1.396,652.01,650.23,1.73519801]
[1747794874908,1.396,652.01,650.24,0.61955636]
[1747794875107,1.396,652.01,650.25,0.61955636]
[1747794875303,1.396,652.01,650.26,1.73519801]
[1747794875509,1.396,652.01,650.27,1.73519801]
[1747794875703,1.396,652.01,650.28,0.61955636]
[1747794875904,1.396,652.01,650.29,0.92694654]
[1747794876106,1.396,652.01,650.3,1.73519801]
[1747794876305,1.396,652.01,650.31,0.61955636]
[1747794876509,1.396,652.01,650.32,0.61955636]
[1747794876710,3.81879201,651.98,650.33,0.92694654]
[1747794876910,3.81879201,651.98,650.34,0.61955636]
[1747794877209,3.81879201,651.98,650.35,0.92694654]
[1747794877410,0.26728008,651.97,650.36,0.61955636]
[1747794877606,0.26728008,651.97,650.37,0.61955636]
[1747794877810,0.26728008,651.97,650.38,0.61955636]
[1747794878008,0.26728008,651.97,650.35,0.30739018]
[1747794878207,0.26728008,651.97,650.36,0.61937185]
[1747794878405,0.26728008,651.97,650.37,0.61937185]
[1747794878604,0.26728008,651.97,650.35,0.30739018]
[1747794878605,0.26728008,651.97,650.38,0.61937185]
[1747794878910,0.26728008,651.97,650.38,0.30739018]
[1747794879910,0.26728008,651.97,650.39,0.30739018]
[1747794881611,0.26728008,651.97,650.18,0.26728008]
[1747794881811,0.26728008,651.97,650.19,0.61934978]
[1747794882011,0.26728008,651.97,650.2,1.73760026]
[1747794882311,3.81879201,651.98,650.21,0.61934978]
[1747794882512,3.81879201,651.98,650.22,1.73760026]
[1747794882713,3.81879201,651.98,650.23,0.61934978]
[1747794882914,3.81879201,651.98,650.24,0.92673752]
[1747794883115,3.81879201,651.98,650.25,0.61934978]
[1747794883409,0.26730266,651.97,650.26,0.61934978]
[1747794883610,0.26730266,651.97,650.27,0.61934978]
[1747794883809,0.26730266,651.97,650.28,1.73760026]
[1747794884014,0.26730266,651.97,650.29,1.73760026]
[1747794884216,0.26730266,651.97,650.3,0.61934978]
[1747794884416,0.26730266,651.97,650.31,0.61952415]
[1747794884717,0.26730266,651.97,650.32,0.61952415]
[1747794885011,0.26730266,651.97,650.33,2.33552415]
[1747794885315,3.81879201,651.98,650.34,0.61952415]
[1747794885515,0.26729958,651.96,650.34,0.61952415]
[1747794885810,0.26729958,651.96,650.35,0.92691189]
[1747794886015,0.26729958,651.96,650.35,0.30738774]
[1747794887118,0.26729958,651.96,650.36,0.30738774]
[1747794888222,3.81879201,651.98,650.36,0.30738774]
[1747794888518,0.26729342,651.95,650.37,0.30738774]
[1747794889724,0.26729342,651.95,650.34,0.30738774]
[1747794889922,0.26729342,651.95,650.35,0.62041722]
[1747794890123,0.26729342,651.95,650.36,0.62057326]
[1747794890418,0.26729342,651.95,650.37,0.62057162]
[1747794890722,0.26729342,651.95,650.38,0.62057162]
[1747794890922,0.26729342,651.95,650.39,0.62057162]
[1747794891118,0.26729342,651.95,650.33,1.716]
[1747794891119,0.26729342,651.95,650.4,0.30738774]
[1747794891421,0.26729342,651.95,650.41,0.6212552]
[1747794891617,0.26729342,651.95,650.4,0.30738774]
[1747794891822,0.26729342,651.95,650.41,0.62144061]
[1747794892023,0.26729342,651.95,650.4,0.30738774]
[1747794892423,0.26729342,651.95,650.41,0.6216329]
[1747794892619,0.26729342,651.95,650.33,1.716]
[1747794892823,0.26729342,651.95,650.34,0.62163299]
[1747794893023,0.26729342,651.95,650.35,0.62163299]
[1747794893219,0.26729342,651.95,650.36,0.62163299]
[1747794893424,0.26729342,651.95,650.37,0.62163299]
[1747794893619,0.26729342,651.95,650.38,0.62163299]
[1747794893822,0.26729342,651.95,650.39,0.62163299]
[1747794894119,0.26729342,651.95,650.4,0.62163299]
[1747794894321,1.396,652.01,650.41,0.62163299]
[1747794894526,0.26727187,651.94,650.42,0.62198305]
[1747794894720,0.26727187,651.94,650.38,0.30737721]
[1747794895025,0.26727187,651.94,650.39,0.62198302]
[1747794895222,0.26727187,651.94,650.4,0.62198302]
[1747794895423,0.26727187,651.94,650.41,0.62198302]
[1747794895619,0.26727187,651.94,650.42,0.62198302]
[1747794895822,0.26727187,651.94,650.43,0.62198302]
[1747794896023,0.26727187,651.94,650.44,0.62198302]
[1747794896221,0.26727187,651.94,650.45,0.62233649]
[1747794896424,0.26727187,651.94,650.33,1.716]
[1747794896720,0.26727187,651.94,650.34,1.74895641]
[1747794896921,0.26727187,651.94,650.33,1.716]
[1747794897320,5.34630882,651.98,650.33,1.716]
[1747794897725,5.34630882,651.98,650.34,1.12669561]
[1747794897929,5.34630882,651.98,650.35,0.62257554]
[1747794898130,5.34630882,651.98,650.36,0.62257554]
[1747794898424,5.34630882,651.98,650.37,1.74927115]
[1747794898632,0.26727905,651.97,650.38,0.62257554]
[1747794898928,0.26727905,651.97,650.39,0.62257554]
[1747794899130,0.26727905,651.97,650.4,0.62257554]
[1747794899329,0.26727905,651.97,650.41,0.62257554]
[1747794899530,0.26727905,651.97,650.42,0.62257554]
[1747794899730,0.26727905,651.97,650.43,0.62257554]
[1747794899930,0.26727905,651.97,650.44,0.62257554]
[1747794900226,0.26727905,651.97,650.45,0.62279715]
[1747794900426,0.26727905,651.97,650.46,0.62279715]
[1747794900627,0.26727905,651.97,650.47,0.62279715]
[1747794900831,0.26727905,651.97,650.33,1.716]
[1747794901032,0.26727905,651.97,650.34,1.74991263]
[1747794901234,0.26727905,651.97,650.35,0.62280091]
[1747794901535,0.26727905,651.97,650.36,1.74991317]
[1747794901733,0.26727905,651.97,650.37,0.62280145]
[1747794901932,0.26727905,651.97,650.38,0.62280145]
[1747794902132,0.26727905,651.97,650.39,1.74991317]
[1747794902332,0.26727905,651.97,650.4,0.62280145]
[1747794902629,0.26727905,651.97,650.41,0.62280145]
[1747794902835,0.26727905,651.97,650.42,0.62280145]
[1747794903035,3.81879201,651.67,650.43,0.62280145]
[1747794903236,3.81879201,651.67,650.44,0.62280145]
[1747794903437,3.81879201,651.67,650.45,0.62280145]
[1747794903638,3.81879201,651.67,650.46,0.62280145]
[1747794903837,3.81879201,651.67,650.47,0.62280145]
[1747794904136,3.81879201,651.67,650.48,0.62280145]
[1747794904437,0.26729856,651.66,650.49,0.6230968]
[1747794904634,0.26729856,651.66,650.33,1.716]
[1747794904835,0.26729856,651.66,650.34,0.62310166]
[1747794905036,0.26729856,651.66,650.35,0.62310166]
[1747794905334,0.26729856,651.66,650.36,1.75138757]
[1747794905535,0.26729856,651.66,650.37,0.62310166]
[1747794905735,0.26729856,651.66,650.38,0.62310166]
[1747794905934,0.26729856,651.66,650.39,1.75138757]
[1747794906238,1.534,651.65,650.4,0.62310166]
[1747794906438,1.534,651.65,650.41,0.62310166]
[1747794906638,1.534,651.65,650.42,0.62310166]
[1747794906838,1.534,651.65,650.43,0.62310166]
[1747794907038,1.534,651.65,650.44,0.62310166]
[1747794907233,1.534,651.65,650.45,0.62310166]
[1747794907437,1.534,651.65,650.46,0.62310166]
[1747794907735,0.26729137,651.64,650.47,0.62310166]
[1747794907934,0.26729137,651.64,650.48,0.62310166]
[1747794908135,0.26729137,651.64,650.49,0.62310166]
[1747794908334,0.26729137,651.64,650.5,0.62310166]
[1747794908538,0.26729137,651.64,650.51,0.62310166]
[1747794908741,0.26729137,651.64,650.52,0.62310166]
[1747794908940,0.26729137,651.64,650.53,0.62310166]
[1747794909137,0.26729137,651.64,650.54,0.62310166]
[1747794909336,1.534,651.65,650.55,0.30734661]
[1747794910740,1.534,651.65,650.56,0.30734661]
[1747794911438,1.534,651.65,650.57,0.30734661]
[1747794912835,1.534,651.65,650.58,0.30734661]
[1747794914140,1.534,651.65,650.59,0.30734661]
[1747794915442,1.534,651.65,650.6,0.6229958]
[1747794915644,1.534,651.65,650.59,0.30734661]
[1747794915845,1.534,651.65,650.6,0.62292545]
[1747794916045,1.534,651.65,650.61,0.62292545]
[1747794916345,1.534,651.65,650.62,0.62292356]
[1747794916541,1.534,651.65,650.63,0.62292356]
[1747794916745,1.534,651.65,650.64,0.62292356]
[1747794916945,1.534,651.65,650.65,0.62292356]
[1747794917141,1.534,651.65,650.66,0.62292356]
[1747794917343,1.534,651.65,650.67,1.75053191]
[1747794917544,1.534,651.65,650.68,0.62292356]
[1747794917745,1.534,651.65,650.69,0.62292356]
[1747794917944,1.534,651.65,650.7,0.62292356]
[1747794918144,1.534,651.65,650.71,0.62292356]
[1747794918343,1.534,651.65,650.72,0.62292356]
[1747794918638,1.534,651.65,650.73,0.62292356]
[1747794918838,1.534,651.65,650.74,0.62292356]
[1747794919043,1.534,651.65,650.75,0.62292356]
[1747794919241,1.534,651.65,650.76,0.62292356]
[1747794919445,1.534,651.65,650.77,0.62292356]
[1747794919647,1.534,651.65,650.78,0.62292356]
[1747794919947,1.534,651.65,650.79,0.62292356]
[1747794920146,1.534,651.65,650.76,0.30734661]
[1747794920347,1.534,651.65,650.77,0.62328804]
[1747794920547,1.534,651.65,650.78,0.62328804]
[1747794920844,1.534,651.65,650.79,0.62328804]
[1747794921046,1.534,651.65,650.8,0.62328804]
[1747794921247,1.534,651.65,650.54,1.131]
[1747794921442,1.534,651.65,650.55,1.75150426]
[1747794921650,1.534,651.65,650.56,0.62344988]
[1747794921845,1.534,651.65,650.57,0.62344988]
[1747794922046,1.534,651.65,650.58,0.62344988]
[1747794922248,1.534,651.65,650.59,0.62344988]
[1747794922447,1.534,651.65,650.6,1.75150426]
[1747794922749,1.534,651.65,650.61,1.75150426]
[1747794922949,1.534,651.65,650.62,0.62344988]
[1747794923147,1.534,651.65,650.63,1.75150426]
[1747794923348,1.534,651.65,650.64,0.62344988]
[1747794923644,1.534,651.65,650.65,0.93071953]
[1747794923849,1.534,651.65,650.66,1.75150426]
[1747794924041,1.534,651.65,650.67,0.62344988]
[1747794924243,1.534,651.65,650.68,1.75150426]
[1747794924546,1.534,651.65,650.69,0.62344988]
[1747794924745,1.534,651.65,650.7,0.62344988]
[1747794924943,1.534,651.65,650.71,0.62344988]
[1747794925149,1.534,651.65,650.72,1.75150426]
[1747794925350,1.534,651.65,650.73,0.62344988]
[1747794925648,1.534,651.65,650.74,0.62344988]
[1747794925849,1.534,651.65,650.75,0.62344988]
[1747794926150,1.534,651.65,650.76,0.93071953]
[1747794926451,1.534,651.65,650.77,0.62344988]
[1747794926749,1.534,651.65,650.78,0.62344988]
[1747794926953,1.534,651.65,650.79,0.62295771]
[1747794927250,1.534,651.65,650.8,0.62295771]
[1747794927443,1.534,651.65,650.81,0.62295771]
[1747794927644,1.534,651.65,650.82,0.62295771]
[1747794927843,1.534,651.65,650.83,0.62295771]
[1747794928044,1.534,651.65,650.54,1.131]
[1747794928250,5.34630882,651.91,650.55,2.05741649]
[1747794928445,0.26724621,651.82,650.56,0.62288068]
[1747794928649,0.26724621,651.82,650.57,0.62275717]
[1747794928850,5.34630882,651.91,650.58,1.75002917]
[1747794929049,5.34630882,651.91,650.59,0.62275717]
[1747794929249,5.34630882,651.91,650.6,0.62275717]
[1747794929449,5.34630882,651.91,650.61,0.93002098]
[1747794929648,5.34630882,651.91,650.62,1.75002917]
[1747794929851,5.34630882,651.91,650.63,1.75002917]
[1747794930051,5.34630882,651.91,650.64,0.62275717]
[1747794930250,5.34630882,651.91,650.65,0.62275717]
[1747794930448,5.34630882,651.91,650.66,0.62275717]
[1747794930649,5.34630882,651.91,650.67,0.62275717]
[1747794930952,0.26718363,651.94,650.7,0.25253552]
[1747794931146,0.26718363,651.94,650.71,0.62275717]
[1747794931346,0.26718363,651.94,650.72,0.62275717]
[1747794931549,0.26718363,651.94,650.73,1.75002917]
[1747794931755,0.26718363,651.94,650.74,1.75002917]
[1747794932050,0.26718363,651.94,650.75,0.93002098]
[1747794932254,1.80018363,651.94,650.76,1.75002917]
[1747794932552,1.80018363,651.94,650.77,0.62275717]
[1747794932752,1.80018363,651.94,650.76,1.127272]
[1747794932753,1.80018363,651.94,650.78,0.62275717]
[1747794933053,1.80018363,651.94,650.79,0.62275717]
[1747794933246,1.80018363,651.94,650.8,0.62275717]
[1747794933449,1.533,651.94,650.81,0.62275717]
[1747794933651,1.8001662,651.94,650.82,0.62275717]
[1747794933849,1.8001662,651.94,650.83,0.62275717]
[1747794934047,1.8001662,651.94,650.84,0.62275717]
[1747794934249,1.8001662,651.94,650.85,0.62275717]
[1747794934455,1.8001662,651.94,650.86,0.62275717]
[1747794934653,1.8001662,651.94,650.87,0.62275717]
[1747794934854,1.8001662,651.94,650.88,0.62275717]
[1747794935058,1.8001662,651.94,650.84,0.30726381]
[1747794935958,1.8001662,651.94,650.54,1.65070172]
[1747794936159,1.8001662,651.94,650.55,1.7460643]
[1747794936359,1.533,651.94,650.56,0.62180877]
[1747794936658,0.26721748,651.93,650.57,1.7460643]
[1747794936859,0.26721748,651.93,650.58,0.92904937]
[1747794937058,0.26721748,651.93,650.59,1.7460643]
[1747794937358,0.26721748,651.93,650.6,0.62180877]
[1747794937654,0.26721748,651.93,650.61,0.62180877]
[1747794937857,0.26721748,651.93,650.62,1.7460643]
[1747794938053,0.26721748,651.93,650.63,0.62180877]
[1747794938258,0.26721748,651.93,650.64,1.7460643]
[1747794938458,0.26721748,651.93,650.65,0.62180877]
[1747794938659,0.26721748,651.93,650.66,1.7460643]
[1747794938853,0.26721748,651.93,650.67,0.62180877]
[1747794939057,0.26721748,651.93,650.68,0.62180877]
[1747794939257,1.533,651.94,650.69,0.62180877]
[1747794939459,1.533,651.94,650.7,0.62180877]
[1747794939659,0.2672103,651.92,650.71,0.62180877]
[1747794939957,0.2672103,651.92,650.72,0.62180877]
[1747794940158,0.2672103,651.92,650.73,0.92904937]
[1747794940359,0.2672103,651.92,650.74,0.62176505]
[1747794940560,0.2672103,651.92,650.73,0.3072406]
[1747794941159,0.2672103,651.92,650.54,1.131]
[1747794941360,0.2672103,651.92,650.55,0.62180352]
[1747794941561,0.2672103,651.92,650.56,1.74836575]
[1747794941859,0.2672103,651.92,650.57,0.62180352]
[1747794942159,0.2672103,651.92,650.58,1.74839707]
[1747794942361,0.2672103,651.92,650.59,0.62183484]
[1747794942655,0.2672103,651.92,650.6,0.62183484]
[1747794942856,0.2672103,651.92,650.61,0.62183484]
[1747794943057,0.2672103,651.92,650.62,0.62183484]
[1747794943255,0.2672103,651.92,650.63,0.62183484]
[1747794943459,0.2672103,651.92,650.54,1.131]
[1747794943658,0.2672103,651.92,650.55,0.62201852]
[1747794943860,0.2672103,651.92,650.56,0.62201852]
[1747794944060,0.2672103,651.92,650.57,0.62201852]
[1747794944358,0.2672103,651.92,650.58,0.62201852]
[1747794944554,0.2672103,651.92,650.59,0.62201852]
[1747794944755,0.2672103,651.92,650.6,0.62201852]
[1747794944955,0.2672103,651.92,650.61,0.62201852]
[1747794945157,0.2672103,651.92,650.62,0.62201852]
[1747794945355,1.533,651.94,650.63,0.62201852]
[1747794945557,1.533,651.94,650.59,0.30734476]
[1747794945757,1.533,651.94,650.6,0.92835204]
[1747794945957,1.533,651.94,650.61,0.62100728]
[1747794946257,1.533,651.94,650.62,0.62100728]
[1747794946452,0.26725237,651.93,650.63,0.62100728]
[1747794946657,0.26725237,651.93,650.6,0.30734476]
[1747794946855,0.26725237,651.93,650.61,0.62077573]
[1747794947060,0.26725237,651.93,650.62,0.62077573]
[1747794947361,0.26725237,651.93,650.63,0.62076812]
[1747794947555,0.26725237,651.93,650.64,0.62076812]
[1747794947760,0.26725237,651.93,650.65,0.62076812]
[1747794947959,0.26725237,651.93,650.62,0.30734476]
[1747794948160,0.26725237,651.93,650.63,0.62084425]
[1747794948362,0.26725237,651.93,650.62,0.30734476]
[1747794948363,0.26725237,651.93,650.64,0.62084425]
[1747794948563,0.26725237,651.93,650.61,2.161]
[1747794951359,1.533,651.94,650.61,2.161]
[1747794952562,0.26725237,651.93,650.61,2.161]
[1747794953659,0.26725237,651.93,650.62,0.62104616]
[1747794953864,0.26725237,651.93,650.61,2.161]
[1747794954059,0.26725237,651.93,650.62,0.62101335]
[1747794954258,1.533,651.94,650.63,0.62101335]
[1747794954458,1.533,651.94,650.64,1.74943721]
[1747794954658,1.533,651.94,650.65,0.62101335]
[1747794954858,1.533,651.94,650.66,0.62101335]
[1747794955056,1.533,651.94,650.61,2.161]
[1747794955057,3.81879201,651.92,650.67,1.74943721]
[1747794955258,3.81879201,651.92,650.68,0.62101335]
[1747794955559,0.26721543,651.91,650.69,1.74943721]
[1747794955763,0.26721543,651.91,650.7,0.62099549]
[1747794955958,0.26721543,651.91,650.71,0.62099549]
[1747794956162,0.26721543,651.91,650.72,0.62099549]
[1747794956362,0.26721543,651.91,650.73,0.62099549]
[1747794956661,0.26721543,651.91,650.74,0.62099549]
[1747794956861,0.26721543,651.91,650.61,2.161]
[1747794957057,0.26721543,651.91,650.62,0.62105305]
[1747794957262,3.81879201,651.92,650.63,0.62105305]
[1747794957461,3.81879201,651.92,650.64,0.62105305]
[1747794957658,3.81879201,651.92,650.65,0.62105305]
[1747794957865,3.81879201,651.92,650.66,0.62105305]
[1747794958061,3.81879201,651.92,650.67,0.62105305]
[1747794958262,3.81879201,651.92,650.68,0.62105305]
[1747794958458,0.26721646,651.91,650.69,0.62105305]
[1747794958663,0.26721646,651.91,650.7,0.3072993]
[1747794960261,3.81879201,651.92,650.7,0.3072993]
[1747794960756,3.81879201,651.92,650.71,0.3072993]
[1747794961457,0.26722364,651.91,650.71,0.3072993]
[1747794962163,0.26722364,651.91,650.72,0.3072993]
[1747794962563,1.442,651.9,650.72,0.3072993]
[1747794963263,1.442,651.9,650.73,0.3072993]
[1747794963864,1.442,651.9,650.74,0.62131497]
[1747794964065,1.442,651.9,650.73,0.3072993]
[1747794964264,1.442,651.9,650.74,0.62130096]
[1747794964465,0.26721338,651.89,650.75,0.62130096]
[1747794964661,0.26721338,651.89,650.76,0.3072993]
[1747794965462,0.26721338,651.89,650.77,0.3072993]
[1747794966267,1.442,651.9,650.77,0.3072993]
[1747794966567,1.442,651.9,650.61,2.161]
[1747794966862,1.442,651.9,650.62,1.74923035]
[1747794967069,1.442,651.9,650.63,0.62155742]
[1747794967369,1.442,651.9,650.64,1.749231]
[1747794967571,0.26722569,651.89,650.65,0.62155742]
[1747794967769,0.26722569,651.89,650.66,1.749231]
[1747794967970,0.26722569,651.89,650.67,0.62155742]
[1747794968170,0.26722569,651.89,650.68,1.749231]
[1747794968367,0.26722569,651.89,650.69,1.749231]
[1747794968568,0.26722569,651.89,650.7,0.62155742]
[1747794968870,0.26722569,651.89,650.71,0.62155742]
[1747794969169,0.26722569,651.89,650.72,0.62155742]
[1747794969469,1.442,651.9,650.73,0.62155742]
[1747794969669,1.442,651.9,650.74,0.62155742]
[1747794969866,1.442,651.9,650.75,0.62155742]
[1747794970068,1.442,651.9,650.76,0.62155742]
[1747794970367,1.442,651.9,650.77,0.62149449]
[1747794970567,0.26721851,651.89,650.75,1.617]
[1747794970766,0.26721851,651.89,650.76,0.6215532]
[1747794970966,0.26721851,651.89,650.77,0.6215532]
[1747794971270,0.26721851,651.89,650.75,1.617]
[1747794971470,0.26721851,651.89,650.76,0.62157941]
[1747794971670,0.26721851,651.89,650.75,1.617]
[1747794971872,0.26721851,651.89,650.76,0.62159089]
[1747794972064,0.26721851,651.89,650.77,0.62158139]
[1747794972269,1.442,651.9,650.75,1.617]
[1747794972468,1.442,651.9,650.76,0.62160488]
[1747794972669,1.442,651.9,650.77,0.62160488]
[1747794972869,1.442,651.9,650.75,1.617]
[1747794973066,1.442,651.9,650.76,0.62159941]
[1747794973371,1.442,651.9,650.77,0.6216158]
[1747794973571,0.26721851,651.89,650.75,1.617]
[1747794973872,0.26721851,651.89,650.76,0.62160178]
[1747794974070,0.26721851,651.89,650.77,0.62160178]
[1747794974270,0.26721851,651.89,650.75,1.617]
[1747794974570,0.26721851,651.89,650.76,0.62161806]
[1747794974770,0.26721851,651.89,650.77,0.62161806]
[1747794975069,0.26721851,651.89,650.75,1.617]
[1747794975271,1.442,651.9,650.76,0.62161964]
[1747794975466,1.442,651.9,650.75,1.617]
[1747794975669,1.442,651.9,650.76,0.6216222]
[1747794975867,1.442,651.9,650.75,1.617]
[1747794976469,0.26721953,651.89,650.75,1.617]
[1747794978271,1.442,651.9,650.75,1.617]
[1747794978972,1.442,651.9,650.76,0.62150235]
[1747794979273,1.442,651.9,650.77,0.62151065]
[1747794979572,0.26721338,651.89,650.78,0.62146351]
[1747794979772,0.26721338,651.89,650.75,1.617]
[1747794980072,0.26721338,651.89,650.76,0.62147265]
[1747794980269,0.26721338,651.89,650.77,0.62147265]
[1747794980476,3.81879201,651.75,650.78,0.62153592]
[1747794980676,3.81879201,651.75,650.75,1.617]
[1747794980871,3.81879201,651.75,650.76,0.62151608]
[1747794981074,3.81879201,651.75,650.77,0.62151608]
[1747794981376,3.81879201,651.75,650.78,0.62151608]
[1747794981576,3.81879201,651.75,650.75,1.617]
[1747794981777,3.81879201,651.75,650.76,0.62158501]
[1747794981977,3.81879201,651.75,650.77,0.62158501]
[1747794982177,3.81879201,651.75,650.78,0.62158501]
[1747794982376,3.81879201,651.75,650.79,0.62158501]
[1747794982578,3.81879201,651.75,650.8,0.6215577]
[1747794982877,3.81879201,651.75,650.55,0.25253552]
[1747794983078,3.81879201,651.75,650.56,0.6215532]
[1747794983279,3.81879201,651.75,650.57,2.05657518]
[1747794983480,3.81879201,651.75,650.58,0.6215532]
[1747794983680,3.81879201,651.75,650.59,0.6215532]
[1747794983882,3.81879201,651.75,650.6,1.74929398]
[1747794984081,3.81879201,651.75,650.61,0.9288344]
[1747794984282,3.81879201,651.75,650.62,1.74929398]
[1747794984482,3.81879201,651.75,650.63,0.6215532]
[1747794984682,3.81879201,651.75,650.64,0.6215532]
[1747794984882,3.81879201,651.75,650.65,1.74929398]
[1747794985078,3.81879201,651.75,650.66,0.6215532]
[1747794985278,3.81879201,651.75,650.67,1.74929398]
[1747794985478,3.81879201,651.75,650.68,0.6215532]
[1747794985678,3.81879201,651.75,650.69,0.6215532]
[1747794985881,3.81879201,651.75,650.67,2.31574078]
[1747794985882,3.81879201,651.75,650.7,1.74929398]
[1747794986078,3.81879201,651.75,650.71,0.9288344]
[1747794986281,3.81879201,651.75,650.72,0.6215532]
[1747794986484,3.81879201,651.75,650.73,1.74929398]
[1747794986682,3.81879201,651.75,650.74,0.6215532]
[1747794986883,3.81879201,651.75,650.75,0.6215532]
[1747794987082,3.81879201,651.75,650.76,0.6215532]
[1747794987383,3.81879201,651.75,650.77,0.6215532]
[1747794987583,3.81879201,651.75,650.71,0.3072812]
[1747794987584,3.81879201,651.75,650.78,0.6215532]
[1747794987779,3.81879201,651.75,650.79,0.6215532]
[1747794987983,3.81879201,651.75,650.8,0.6215532]
[1747794988184,3.81879201,651.75,650.81,0.6215532]
[1747794988383,3.81879201,651.75,650.82,0.6215532]
[1747794988685,1.534,651.74,650.83,0.6215532]
[1747794988879,1.534,651.74,650.84,0.6215532]
[1747794989184,1.534,651.74,650.67,1.188]
[1747794989385,1.534,651.74,650.68,0.62160133]
[1747794989585,1.534,651.74,650.69,0.62160133]
[1747794989887,1.534,651.74,650.7,1.74917067]
[1747794990086,1.534,651.74,650.71,0.62160133]
[1747794990287,1.534,651.74,650.72,1.74917067]
[1747794990485,1.534,651.74,650.73,0.62160133]
[1747794990687,1.534,651.74,650.74,0.62160133]
[1747794990883,1.534,651.74,650.75,0.62160133]
[1747794991083,1.534,651.74,650.76,0.62175544]
[1747794991286,1.534,651.74,650.77,1.74932478]
[1747794991488,1.534,651.74,650.78,0.62175544]
[1747794991690,1.534,651.74,650.79,0.62175544]
[1747794991884,1.534,651.74,650.8,0.62175544]
[1747794992089,1.534,651.74,650.81,0.62175544]
[1747794992389,1.534,651.74,650.67,1.188]
[1747794992390,1.534,651.74,650.82,0.62175544]
[1747794992584,1.534,651.74,650.83,0.62175544]
[1747794992789,1.534,651.74,650.84,0.62175544]
[1747794992989,1.534,651.74,650.85,0.62175544]
[1747794993191,1.534,651.74,650.86,0.62175544]
[1747794993490,1.534,651.74,650.87,0.62203525]
[1747794993791,1.534,651.74,650.67,1.188]
[1747794993992,1.534,651.74,650.68,1.75029881]
[1747794994191,1.534,651.74,650.69,1.75029881]
[1747794994490,1.534,651.74,650.7,0.62205145]
[1747794994691,1.534,651.74,650.71,1.75029881]
[1747794994892,1.534,651.74,650.72,0.62205145]
[1747794995085,1.534,651.74,650.73,1.75029881]
[1747794995285,1.534,651.74,650.74,0.62205145]
[1747794995490,1.534,651.74,650.75,1.75029881]
[1747794995687,1.534,651.74,650.76,0.62205145]
[1747794995890,1.534,651.74,650.77,0.62205145]
[1747794996088,1.534,651.74,650.78,1.75059128]
[1747794996293,1.534,651.74,650.79,0.62205145]
[1747794996595,1.534,651.74,650.8,1.75059128]